bitfinex-derivatives/quotes_ETHF0:USTF0_20250410
["timestamp","ask_amount","ask_price","bid_price","bid_amount"]
[1744310374761,16.32416125,1516.2,1516.1,17.29751139]
[1744310374962,16.32416125,1516.2,1516.1,13.71556139]
[1744310375163,1.31993,1516.1,1516.0,0.00987524]
[1744310375463,1.31993,1516.1,1516.0,5.24e-06]
[1744310375765,6.31993,1516.1,1516.0,5.24e-06]
[1744310376065,1.31993,1516.1,1516.0,5.24e-06]
[1744310376571,1.31993,1516.1,1516.0,6.59361121]
[1744310376964,7.18178524,1516.2,1516.0,6.59361121]
[1744310377166,0.00987524,1516.2,1516.1,10.51803597]
[1744310378278,0.00987524,1516.2,1516.1,15.51803597]
[1744310378462,0.00987524,1516.2,1516.1,18.16033597]
[1744310378861,0.00987524,1516.2,1516.1,28.16033597]
[1744310379868,3.29856,1516.7,1516.5,1.31952]
[1744310379869,1.31948,1516.7,1516.5,1.31952]
[1744310380073,1.31948,1516.7,1516.6,3.9459]
[1744310380373,7.69660889,1516.7,1516.2,13.2078]
[1744310380668,7.69660889,1516.7,1516.0,5.24e-06]
[1744310380669,1.31993,1516.1,1516.0,5.24e-06]
[1744310381170,1.31993,1516.1,1516.0,6.59361121]
[1744310381372,1.32980524,1516.2,1516.0,6.59361121]
[1744310381575,0.00987524,1516.2,1516.1,7.91353597]
[1744310381866,0.00987524,1516.2,1516.1,10.53993597]
[1744310382071,1.32972524,1516.2,1516.1,10.53993597]
[1744310382273,0.00987524,1516.2,1516.1,10.53993597]
[1744310382464,0.00987524,1516.2,1516.1,20.53993597]
[1744310383070,1.32972524,1516.2,1516.1,9.22000597]
[1744310383569,1.32972524,1516.2,1516.1,10.53993597]
[1744310383767,1.32972524,1516.2,1516.1,9.22000597]
[1744310383971,1.32972524,1516.2,1516.1,10.53993597]
[1744310384365,1.32972524,1516.2,1516.1,9.22000597]
[1744310384570,1.32972524,1516.2,1516.1,10.53993597]
[1744310384768,0.00987524,1516.2,1516.1,10.53993597]
[1744310385075,0.00987524,1516.2,1516.1,13.74773597]
[1744310385371,0.00987524,1516.2,1516.1,23.74773597]
[1744310386167,0.00987524,1516.2,1516.1,13.74773597]
[1744310386368,3.2078,1516.7,1516.2,3.29963]
[1744310386575,1.31964,1516.5,1516.4,1.31964]
[1744310386875,1.31948,1516.7,1516.6,1.3195]
[1744310387369,1.3195,1516.6,1516.5,4.00402]
[1744310387574,1.31944,1516.7,1516.6,1.31944]
[1744310388077,1.31944,1516.7,1516.6,7.91304597]
[1744310388572,0.00987524,1516.8,1516.7,1.31941]
[1744310388769,0.00987524,1516.8,1516.7,10.43571597]
[1744310388965,7.69660889,1517.1,1517.0,1.31915]
[1744310389471,7.69660889,1517.1,1517.0,7.91275597]
[1744310389675,7.69660889,1517.1,1517.0,10.43545597]
[1744310389875,7.69660889,1517.1,1517.0,20.43545597]
[1744310390170,10.25584394,1517.2,1517.1,1.31906]
[1744310390372,11.57482394,1517.2,1517.1,21.12046597]
[1744310390766,10.25584394,1517.2,1517.1,21.12046597]
[1744310390967,10.25584394,1517.2,1517.1,6.59360597]
[1744310391169,10.25584394,1517.2,1517.0,2.5227]
[1744310391374,10.25584394,1517.2,1517.1,7.91266597]
[1744310391571,10.25584394,1517.2,1517.1,11.12046597]
[1744310391776,10.25584394,1517.2,1517.1,16.12046597]
[1744310391970,10.25584394,1517.2,1517.1,18.62396597]
[1744310392574,10.25584394,1517.2,1517.1,23.62396597]
[1744310393079,11.57482394,1517.2,1517.1,6.59360597]
[1744310393474,1.32885524,1517.2,1517.1,7.91266597]
[1744310393672,1.32885524,1517.2,1517.1,6.59360597]
[1744310393872,1.31906,1517.1,1517.0,2.5227]
[1744310394377,1.31915,1517.0,1516.9,0.00987524]
[1744310394575,4.52695,1517.0,1516.9,0.00987524]
[1744310395375,4.52695,1517.0,1516.9,6.60348121]
[1744310395677,0.00987524,1517.2,1516.9,9.81128121]
[1744310395875,0.00987524,1517.2,1517.1,1.31906]
[1744310396078,0.00987524,1517.2,1517.1,4.52686]
[1744310396279,0.00987524,1517.2,1517.1,11.12046597]
[1744310396481,0.00987524,1517.2,1517.1,16.12046597]
[1744310396681,0.00987524,1517.2,1517.1,22.35646597]
[1744310396887,1.31855,1517.7,1517.6,1.31856]
[1744310397180,1.31847,1517.8,1517.7,1.31849]
[1744310397379,1.31847,1517.8,1517.7,7.91209597]
[1744310397782,12.81688085,1517.9,1517.8,1.31846]
[1744310398083,12.82675609,1517.9,1517.8,10.46346597]
[1744310399180,12.82675609,1517.9,1517.8,20.46346597]
[1744310399581,1.31846,1517.8,1517.7,0.00987524]
[1744310399978,3.85446,1517.8,1517.7,0.00987524]
[1744310400175,14.14515609,1517.9,1517.7,6.60348121]
[1744310400480,1.31846,1517.8,1517.7,0.00987524]
[1744310400678,4.10056,1517.8,1517.7,6.60348121]
[1744310400883,7.30836,1517.8,1517.7,0.00987524]
[1744310401286,4.10056,1517.8,1517.7,0.00987524]
[1744310402285,7.30836,1517.8,1517.7,0.00987524]
[1744310402887,4.10056,1517.8,1517.7,0.00987524]
[1744310403083,1.31846,1517.8,1517.7,0.00987524]
[1744310403383,1.32830524,1517.9,1517.8,1.31846]
[1744310403587,0.00987524,1517.9,1517.8,10.60436597]
[1744310403776,0.00987524,1517.9,1517.8,4.01076]
[1744310404085,1.32824524,1517.9,1517.8,20.60436597]
[1744310404384,0.00987524,1517.9,1517.8,10.60436597]
[1744310404577,9.03172,1518.6,1517.9,3.29593]
[1744310404887,9.03172,1518.6,1518.1,3.2078]
[1744310404888,3.29465,1518.5,1518.1,3.2078]
[1744310405184,6.50264,1518.4,1518.0,6.59360597]
[1744310405381,1.3182,1518.1,1518.0,9.28590597]
[1744310405883,2.7335,1518.3,1518.0,9.28590597]
[1744310406083,1.31811,1518.2,1518.1,6.59360597]
[1744310406284,1.3182,1518.1,1518.0,2.6923]
[1744310406473,1.3182,1518.1,1518.0,9.28590597]
[1744310407489,1.31816,1518.2,1518.1,1.31818]
[1744310407686,1.31818,1518.2,1518.0,4.0105]
[1744310407984,1.31818,1518.2,1518.1,6.59360597]
[1744310408185,1.31818,1518.2,1518.1,15.27561597]
[1744310408488,1.3182,1518.1,1518.0,2.6923]
[1744310408684,1.31837,1517.9,1517.8,2.7459]
[1744310408990,1.31846,1517.8,1517.7,0.00987524]
[1744310409192,1.31846,1517.8,1517.7,6.60348121]
[1744310409380,1.31846,1517.8,1517.7,0.00987524]
[1744310409587,1.31846,1517.8,1517.7,6.60348121]
[1744310410084,3.2078,1518.2,1517.7,6.60348121]
[1744310410396,1.31805,1518.3,1518.2,1.31807]
[1744310410683,11.54634261,1518.4,1518.1,3.2078]
[1744310410884,10.22833261,1518.4,1518.1,12.50560597]
[1744310411092,10.22833261,1518.4,1518.3,1.31802]
[1744310411291,1.31802,1518.3,1518.2,9.15160597]
[1744310411584,11.54626261,1518.4,1518.3,7.91162597]
[1744310411790,0.00976959,1518.4,1518.3,11.11942597]
[1744310412094,22.29356302,1518.9,1518.7,1.31765]
[1744310412288,1.31762,1518.8,1518.7,1.31765]
[1744310412483,10.21856302,1518.9,1518.5,3.2078]
[1744310412690,1.31764,1518.8,1518.6,12.81660597]
[1744310412885,1.31767,1518.7,1518.6,12.81660597]
[1744310413092,1.31764,1518.8,1518.7,6.59360597]
[1744310413291,11.53612302,1518.9,1518.7,7.91122597]
[1744310413495,10.21856302,1518.9,1518.8,7.91119597]
[1744310413695,10.21856302,1518.9,1518.8,1.31759]
[1744310413987,10.21856302,1518.9,1518.8,12.91119597]
[1744310414188,10.21856302,1518.9,1518.8,24.31300597]
[1744310414898,6.22327488,1519.1,1519.0,1.31741]
[1744310415893,1.31741,1519.0,1518.9,12.2315]
[1744310416088,1.31741,1519.0,1518.9,6.0105]
[1744310416392,1.31733,1519.1,1519.0,1.31741]
[1744310416595,12.15464,1519.5,1518.9,17.2315]
[1744310416796,12.15464,1519.5,1519.1,1.31728]
[1744310417297,1.31724,1519.2,1519.1,1.31728]
[1744310417489,1.31724,1519.2,1519.0,1.31737]
[1744310417794,1.3173,1519.2,1519.0,1.31737]
[1744310417995,1.3173,1519.2,1519.1,1.31733]
[1744310418191,1.31733,1519.1,1518.9,12.2315]
[1744310418391,1.31741,1519.0,1518.9,12.2315]
[1744310418590,1.31741,1519.0,1518.9,3.2078]
[1744310418798,1.3175,1518.9,1518.8,4.03739]
[1744310419182,1.3175,1519.0,1518.9,1.3175]
[1744310419393,1.31749,1519.0,1518.8,4.03736]
[1744310419595,1.3175,1518.9,1518.8,2.7198]
[1744310420197,6.58773,1518.9,1518.5,7.28675524]
[1744310420389,1.31776,1518.6,1518.5,5.96897524]
[1744310420592,1.31776,1518.6,1518.5,2.76117524]
[1744310420785,1.31776,1518.6,1518.5,0.00987524]
[1744310422489,11.83439,1518.8,1518.5,1.32772524]
[1744310422490,5.3326,1518.8,1518.5,1.32772524]
[1744310422699,1.31776,1518.6,1518.5,1.32772524]
[1744310422891,8.6266,1518.8,1518.5,1.32772524]
[1744310423092,8.6266,1518.8,1518.5,0.00987524]
[1744310423093,1.31776,1518.6,1518.5,0.00987524]
[1744310423395,1.31776,1518.6,1518.5,1.32772524]
[1744310423591,1.31776,1518.6,1518.5,0.00987524]
[1744310423803,5.8729,1518.8,1518.5,1.32772524]
[1744310423992,1.31776,1518.6,1518.5,0.00987524]
[1744310424191,3.2949,1518.4,1518.0,5.8195]
[1744310424389,1.3182,1518.1,1518.0,3.9299]
[1744310424604,1.31828,1518.0,1517.9,2.7925]
[1744310424793,6.50368,1518.0,1517.5,4.5265]
[1744310424996,12.72308,1518.2,1517.8,1.31837]
[1744310425202,1.31828,1518.0,1517.9,1.31832]
[1744310425404,1.31822,1518.1,1518.0,3.91206]
[1744310425597,2.58527524,1518.2,1518.1,1.3182]
[1744310425598,3.90341524,1518.2,1518.1,1.3182]
[1744310425902,0.00987524,1518.2,1518.0,3.91202]
[1744310426202,0.00987524,1518.2,1518.1,1.3182]
[1744310426397,1.32798524,1518.2,1518.1,1.3182]
[1744310426699,1.32798524,1518.2,1518.0,2.5938]
[1744310426906,0.00987524,1518.2,1518.0,3.91202]
[1744310427293,1.3182,1518.1,1518.0,3.91202]
[1744310427493,1.3182,1518.1,1518.0,2.5938]
[1744310427898,0.00987524,1518.2,1518.1,1.3182]
[1744310428202,1.3182,1518.1,1518.0,2.5938]
[1744310428791,1.3182,1518.1,1518.0,3.91208]
[1744310428996,1.3182,1518.1,1518.0,2.5938]
[1744310429492,4.0486,1518.1,1518.0,2.5938]
[1744310429896,1.31837,1517.9,1517.8,5.17617524]
[1744310430196,1.31837,1517.9,1517.8,2.81297524]
[1744310430497,9.52617,1517.9,1517.8,0.00987524]
[1744310430697,12.53937,1517.9,1517.8,0.00987524]
[1744310431199,8.92027,1517.9,1517.8,0.00987524]
[1744310431400,6.0277,1518.1,1517.9,1.31834]
[1744310431598,3.9201,1518.1,1518.0,2.7969]
[1744310432204,1.31837,1517.9,1517.8,0.00987524]
[1744310432403,1.31837,1517.9,1517.8,2.80677524]
[1744310432702,1.31837,1517.9,1517.8,0.00987524]
[1744310432900,12.53937,1517.9,1517.8,5.24e-06]
[1744310433101,1.31915,1517.0,1516.9,2.6956]
[1744310433297,3.29801,1517.0,1516.5,4.52731]
[1744310433496,6.221,1517.1,1516.5,3.74735844]
[1744310433704,1.319,1517.2,1516.7,6.50632]
[1744310433901,1.319,1517.2,1517.0,1.3191]
[1744310434095,1.31892,1517.3,1517.1,1.31901]
[1744310434407,1.319,1517.2,1517.0,1.31909]
[1744310434603,1.319,1517.2,1517.0,3.89429]
[1744310434804,2.84267524,1517.3,1517.1,1.31906]
[1744310435004,2.84267524,1517.3,1517.2,2.5752]
[1744310435203,0.00987524,1517.3,1517.2,3.89418]
[1744310436102,0.00987524,1517.3,1517.2,11.60408]
[1744310436503,4.52631,1517.8,1517.6,1.31856]
[1744310436703,4.52631,1517.8,1517.7,2.5752]
[1744310436902,7.33841,1517.8,1517.7,2.5752]
[1744310437108,4.13061,1517.8,1517.7,2.5752]
[1744310437502,1.31889,1517.3,1517.2,2.7099]
[1744310437698,2.6362,1517.7,1517.2,8.5137]
[1744310437903,4.13078,1517.6,1517.5,1.31872]
[1744310438102,2.8121,1517.6,1517.4,1.31876]
[1744310438306,4.13073,1517.6,1517.5,2.596]
[1744310438604,2.8121,1517.6,1517.2,7.23663]
[1744310438811,1.31887,1517.4,1517.3,2.596]
[1744310439613,1.31877,1517.5,1517.3,3.91489]
[1744310439998,1.31877,1517.5,1517.4,4.0204]
[1744310440204,2.8121,1517.6,1517.5,1.31872]
[1744310440403,1.31863,1517.6,1517.5,2.7016]
[1744310441004,3.96803,1517.6,1517.5,2.7016]
[1744310441510,1.3188,1517.4,1517.3,1.31883]
[1744310441707,1.3188,1517.4,1517.3,4.02043]
[1744310441907,1.31879,1517.5,1517.3,4.02043]
[1744310442107,3.96819,1517.5,1517.4,2.7016]
[1744310442716,1.31889,1517.3,1517.2,3.2078]
[1744310443015,1.31887,1517.4,1517.2,5.9094]
[1744310443207,1.31889,1517.3,1517.2,5.9094]
[1744310443408,1.31889,1517.3,1517.2,2.7016]
[1744310443715,1.31887,1517.4,1517.2,2.7016]
[1744310443917,3.96817,1517.5,1517.4,1.3188]
[1744310444108,5.1264015,1517.6,1517.2,5.9094]
[1744310444309,1.31885,1517.4,1517.3,1.31887]
[1744310444511,1.31885,1517.4,1517.2,4.52671]
[1744310444713,2.7092,1517.5,1517.3,1.31889]
[1744310444913,1.3188,1517.4,1517.3,1.31889]
[1744310445323,1.31898,1517.2,1517.1,7.53402]
[1744310445518,1.31896,1517.3,1517.1,7.53402]
[1744310445714,1.31896,1517.3,1517.1,6.215]
[1744310446019,1.31896,1517.3,1517.1,7.53399]
[1744310446211,1.31898,1517.2,1517.1,7.53399]
[1744310446611,1.31896,1517.3,1517.2,1.31898]
[1744310446811,3.29702,1517.4,1517.1,7.53399]
[1744310447012,5.90582,1517.4,1517.1,1.319]
[1744310447212,3.29723,1517.3,1517.0,3.2078]
[1744310447414,2.6088,1517.3,1517.0,4.52693]
[1744310447613,1.31906,1517.1,1517.0,4.52693]
[1744310447823,2.6088,1517.3,1517.0,3.2078]
[1744310448020,1.31906,1517.1,1517.0,4.52689]
[1744310448320,3.2078,1517.5,1517.0,11.50561]
[1744310448521,2.6088,1517.6,1517.3,3.2078]
[1744310448721,1.31876,1517.5,1517.4,1.31878]
[1744310449016,1.3188,1517.4,1517.3,6.74987]
[1744310449220,2.809,1517.5,1517.1,4.5268]
[1744310449430,1.31896,1517.3,1517.2,1.31897]
[1744310449713,1.31898,1517.2,1517.1,1.31899]
[1744310449917,2.809,1517.5,1517.1,3.2078]
[1744310450119,11.3424015,1517.7,1517.4,3.2078]
[1744310450421,1.31864,1517.6,1517.5,1.31864]
[1744310450910,5.1264015,1517.7,1517.6,1.31863]
[1744310451319,6.4449415,1517.7,1517.6,1.31863]
[1744310451524,5.1264015,1517.7,1517.6,4.52643]
[1744310451715,5.1264015,1517.7,1517.6,9.52643]
[1744310452215,1.31863,1517.6,1517.5,1.31864]
[1744310452417,6.4450115,1517.7,1517.6,1.31863]
[1744310452616,5.1264015,1517.7,1517.6,1.31863]
[1744310452813,6.4449415,1517.7,1517.6,1.31863]
[1744310453009,5.1264015,1517.7,1517.4,9.95754]
[1744310453212,1.31889,1517.3,1517.2,1.31894]
[1744310453517,1.31898,1517.2,1517.1,4.10841]
[1744310454112,1.31906,1517.1,1517.0,2.7869]
[1744310454513,1.31915,1517.0,1516.9,3.21767524]
[1744310454714,9.27417,1517.3,1516.9,0.00987524]
[1744310454715,1.31913,1517.1,1516.9,0.00987524]
[1744310454919,1.31915,1517.0,1516.9,1.32905524]
[1744310455515,1.31915,1517.0,1516.9,2.68967524]
[1744310456317,1.31915,1517.0,1516.9,4.00891524]
[1744310456513,4.11088524,1517.1,1516.9,0.00987524]
[1744310456813,1.31915,1517.0,1516.9,0.00987524]
[1744310457016,4.10105,1517.0,1516.9,0.00987524]
[1744310457219,9.10105,1517.0,1516.9,0.00987524]
[1744310457618,1.31941,1516.7,1516.6,2.6798]
[1744310457826,3.2078,1516.9,1516.4,2.8483]
[1744310458023,6.22687524,1517.1,1516.6,2.6798]
[1744310458024,9.52456524,1517.1,1516.6,2.6798]
[1744310458226,2.6217,1517.0,1516.6,5.8876]
[1744310458428,3.9409,1517.0,1516.7,2.7574]
[1744310458625,3.9409,1517.0,1516.8,1.31929]
[1744310458830,1.31915,1517.0,1516.9,2.7574]
[1744310459125,0.00987524,1517.1,1517.0,1.31915]
[1744310459523,0.00987524,1517.1,1517.0,4.52695]
[1744310459921,0.00987524,1517.1,1517.0,12.28435]
[1744310460630,0.00987524,1517.1,1517.0,2.7574]
[1744310460928,0.00987524,1517.1,1517.0,7.28435]
[1744310461126,0.00987524,1517.1,1517.0,18.50135]
[1744310461524,0.00987524,1517.1,1517.0,13.50135]
[1744310462819,0.00987524,1517.1,1517.0,12.28435]
[1744310463220,1.32893524,1517.1,1517.0,2.7574]
[1744310463527,1.31924,1516.9,1516.8,1.31926]
[1744310463717,1.31924,1516.9,1516.8,2.7355]
[1744310466823,2.5823,1517.0,1516.7,0.00987524]
[1744310467033,1.31933,1516.8,1516.7,0.00987524]
[1744310467731,4.05253,1516.8,1516.7,0.00987524]
[1744310468029,1.31933,1516.8,1516.7,0.00987524]
[1744310468230,1.31933,1516.8,1516.7,2.68987524]
[1744310469332,1.31933,1516.8,1516.5,2.6616]
[1744310469333,1.31993,1516.1,1516.0,4.52774]
[1744310469519,1.3199,1516.2,1516.1,2.68]
[1744310470430,1.31993,1516.1,1516.0,0.00987524]
[1744310470626,1.31993,1516.1,1515.6,15.23948918]
[1744310470627,1.32028,1515.7,1515.6,15.23948918]
[1744310470823,1.3202,1515.8,1515.7,1.32026]
[1744310471027,4.01906,1515.9,1515.7,3.91732]
[1744310471227,6.21,1516.2,1515.7,2.5971]
[1744310471431,12.20855,1516.2,1515.8,1.32018]
[1744310471632,3.2078,1516.1,1515.7,2.7945]
[1744310471833,1.32011,1515.9,1515.8,2.60697524]
[1744310472835,1.32011,1515.9,1515.8,0.00987524]
[1744310473136,4.52791,1515.9,1515.8,0.00987524]
[1744310473530,7.22261,1515.9,1515.8,0.00987524]
[1744310473837,1.32046,1515.5,1515.4,2.7945]
[1744310474022,6.50851,1515.7,1515.3,15.23948918]
[1744310474229,6.50851,1515.7,1515.3,16.56009918]
[1744310474534,1.32054,1515.4,1515.3,15.23948918]
[1744310474736,1.32054,1515.4,1515.3,16.56007918]
[1744310475034,0.00987524,1515.5,1515.2,0.00987524]
[1744310475336,2.70457524,1515.5,1515.3,1.32061]
[1744310475538,4.02503524,1515.5,1515.4,2.8212]
[1744310475731,0.00987524,1515.5,1515.4,2.8212]
[1744310475934,1.33033524,1515.5,1515.4,2.8212]
[1744310476235,0.00987524,1515.5,1515.4,7.34954]
[1744310476435,0.00987524,1515.5,1515.4,12.34954]
[1744310476631,0.00987524,1515.5,1515.4,18.56254]
[1744310476937,0.00987524,1515.5,1515.4,21.22634]
[1744310477531,10.7397015,1516.0,1515.6,1.32035]
[1744310477532,8.4264715,1516.0,1515.6,1.32035]
[1744310477734,7.9588015,1516.0,1515.7,4.18105]
[1744310477932,7.9588015,1516.0,1515.8,1.3202]
[1744310478133,6.4464215,1516.0,1515.9,2.8608]
[1744310478934,5.1264015,1516.0,1515.9,4.18091]
[1744310480546,6.4464215,1516.0,1515.9,2.8608]
[1744310481145,1.3202,1515.8,1515.7,2.6658]
[1744310481445,1.32028,1515.7,1515.6,2.5943]
[1744310482039,8.30089,1515.7,1515.3,4.1425]
[1744310482246,1.32054,1515.4,1515.3,4.14252]
[1744310482542,1.32054,1515.4,1515.3,2.8219]
[1744310482839,1.32063,1515.3,1515.2,2.71867524]
[1744310483037,1.3205,1515.5,1515.3,1.3206]
[1744310483235,1.32062,1515.4,1515.2,4.03937524]
[1744310483435,1.32063,1515.3,1515.2,2.71867524]
[1744310483642,1.32063,1515.3,1515.2,5.39117524]
[1744310483841,3.98258,1515.4,1515.2,6.71184524]
[1744310484048,1.32063,1515.3,1515.2,5.39117524]
[1744310484343,3.2078,1515.6,1515.4,1.3205]
[1744310484543,4.52817,1515.6,1515.5,2.6725]
[1744310484743,7.19017,1515.6,1515.5,2.6725]
[1744310484947,1.32031,1515.7,1515.5,3.99288]
[1744310485146,1.32014,1515.9,1515.7,1.32022]
[1744310485345,6.45622674,1516.1,1515.8,2.6938]
[1744310485540,6.45628674,1516.1,1515.9,1.32008]
[1744310485739,6.45628674,1516.1,1516.0,2.6938]
[1744310485935,5.13627674,1516.1,1516.0,4.01382]
[1744310486139,5.13627674,1516.1,1516.0,12.22162]
[1744310486541,5.13627674,1516.1,1516.0,7.22162]
[1744310486842,5.13627674,1516.1,1516.0,18.43662]
[1744310487044,7.69335432,1516.2,1516.1,1.31993]
[1744310487449,7.69335432,1516.2,1516.1,6.31993]
[1744310487646,9.01320432,1516.2,1516.1,2.5993]
[1744310487853,7.69335432,1516.2,1516.1,8.91923]
[1744310488042,10.26359176,1516.4,1516.3,1.31976]
[1744310488243,10.26359176,1516.4,1516.3,15.51956]
[1744310488546,10.32074419,1516.6,1516.5,1.31959]
[1744310488741,10.32074419,1516.6,1516.5,10.51939]
[1744310488948,7.68181452,1516.9,1516.8,1.31933]
[1744310489135,7.68181452,1516.9,1516.8,4.52713]
[1744310490043,7.68181452,1516.9,1516.8,15.51913]
[1744310490545,0.95161452,1516.9,1516.8,15.51913]
[1744310491746,0.95161452,1516.9,1516.8,10.51913]
[1744310492549,0.95161452,1516.9,1516.8,4.52713]
[1744310492748,0.95161452,1516.9,1516.8,15.51913]
[1744310493245,10.00844472,1517.1,1517.0,1.31915]
[1744310493444,8.67013472,1517.1,1517.0,10.73995]
[1744310493644,1.31869,1517.6,1517.4,1.31874]
[1744310493846,1.31869,1517.6,1517.5,3.2078]
[1744310494048,1.31863,1517.6,1517.5,6.0576]
[1744310494250,1.31848,1517.8,1517.6,1.31857]
[1744310494449,6.82992,1518.0,1517.8,1.31841]
[1744310494652,0.00987524,1517.9,1517.7,3.2078]
[1744310494848,0.00987524,1517.9,1517.8,1.31846]
[1744310495151,5.24e-06,1517.9,1517.8,10.10166]
[1744310495351,2.7643,1518.7,1518.6,1.31776]
[1744310495551,4.07417,1518.7,1518.6,3.2078]
[1744310495750,20.44552103,1518.9,1518.6,3.2078]
[1744310495948,18.09064077,1518.8,1518.6,3.2078]
[1744310496149,15.33414077,1518.8,1518.6,3.2078]
[1744310496357,15.33414077,1518.8,1518.7,2.6333]
[1744310496851,1.31772,1518.7,1518.5,0.00987524]
[1744310497052,2.7565,1518.7,1518.5,2.64317524]
[1744310497253,1.31776,1518.6,1518.5,2.64317524]
[1744310497447,1.31776,1518.6,1518.5,0.00987524]
[1744310498049,6.31776,1518.6,1518.5,0.00987524]
[1744310499245,8.90196,1518.6,1518.5,0.00987524]
[1744310499451,1.31814,1518.2,1518.0,3.2078]
[1744310499657,1.31819,1518.2,1518.0,6.0149]
[1744310499860,5.9091,1518.6,1518.0,6.0149]
[1744310500045,2.5842,1518.4,1518.2,3.2078]
[1744310500250,3.90214,1518.4,1518.2,4.52588]
[1744310500551,1.31818,1518.2,1518.1,0.00987524]
[1744310501057,6.31818,1518.2,1518.1,0.00987524]
[1744310501456,9.52598,1518.2,1518.1,0.00987524]
[1744310501656,9.52598,1518.2,1517.5,6.2]
[1744310501657,3.2955,1518.1,1517.5,9.4078]
[1744310501956,1.31863,1517.6,1517.5,6.0559]
[1744310502752,1.31872,1517.5,1517.4,0.00987524]
[1744310503955,12.51772,1517.5,1517.4,5.24e-06]
[1744310504558,3.92832,1517.5,1517.4,5.24e-06]
[1744310505062,2.6096,1517.5,1517.4,3.20780524]
[1744310505252,1.31867,1517.6,1517.4,3.20780524]
[1744310505554,1.31867,1517.6,1517.5,2.8446]
[1744310505758,1.31872,1517.5,1517.4,5.24e-06]
[1744310506354,6.31872,1517.5,1517.4,5.24e-06]
[1744310506756,1.31872,1517.5,1517.4,5.24e-06]
[1744310506955,4.15172,1517.5,1517.4,5.24e-06]
[1744310507453,4.15172,1517.5,1517.4,3.20780524]
[1744310508449,2.833,1517.5,1517.4,4.52660524]
[1744310508650,4.15172,1517.5,1517.4,3.20780524]
[1744310508854,4.15172,1517.5,1517.4,5.24e-06]
[1744310509456,9.15172,1517.5,1517.4,5.24e-06]
[1744310509861,17.96982,1517.5,1517.4,5.24e-06]
[1744310513257,6.77082,1517.5,1517.4,5.24e-06]
[1744310513463,4.15172,1517.5,1517.4,5.24e-06]
[1744310514665,0.00987524,1517.7,1517.4,5.00000524]
[1744310514862,1.32848524,1517.7,1517.5,3.98847]
[1744310515058,1.31863,1517.6,1517.5,5.8776]
[1744310515263,2.86897524,1517.7,1517.5,5.8776]
[1744310515465,4.18751524,1517.7,1517.5,5.8776]
[1744310515662,2.86897524,1517.7,1517.5,5.8776]
[1744310515863,1.31863,1517.6,1517.5,2.6698]
[1744310516064,1.31872,1517.5,1517.4,5.24e-06]
[1744310516766,1.31867,1517.6,1517.4,4.16360524]
[1744310516961,1.31872,1517.5,1517.4,4.16360524]
[1744310517156,0.00987524,1517.7,1517.5,1.31872]
[1744310517361,1.31863,1517.6,1517.5,2.8448]
[1744310517863,1.31863,1517.6,1517.5,4.16352]
[1744310518059,1.31863,1517.6,1517.5,2.8448]
[1744310518263,1.31863,1517.6,1517.5,4.16352]
[1744310518463,1.31863,1517.6,1517.5,2.8448]
[1744310519368,1.31863,1517.6,1517.5,4.16352]
[1744310519563,1.31863,1517.6,1517.5,2.8448]
[1744310520167,3.09967524,1517.7,1517.5,4.16352]
[1744310520366,1.31863,1517.6,1517.5,2.8448]
[1744310520970,4.52643,1517.6,1517.5,2.8448]
[1744310521165,1.31872,1517.5,1517.4,5.24e-06]
[1744310521366,7.12142,1517.5,1517.4,5.24e-06]
[1744310521665,12.12142,1517.5,1517.4,5.24e-06]
[1744310523667,7.12142,1517.5,1517.4,5.24e-06]
[1744310523970,4.29552,1517.5,1517.4,1.31880524]
[1744310524158,0.00987524,1517.7,1517.4,5.24e-06]
[1744310524368,0.00987524,1517.7,1517.6,1.31863]
[1744310524767,0.00987524,1517.7,1517.6,9.23803]
[1744310525273,0.00987524,1517.7,1517.6,15.23003]
[1744310526274,0.00987524,1517.7,1517.6,15.22923]
[1744310526862,1.32841524,1517.7,1517.6,10.22923]
[1744310527069,0.00987524,1517.7,1517.6,15.22923]
[1744310528574,10.20873484,1518.1,1518.0,1.31828]
[1744310528775,10.20873484,1518.1,1518.0,4.52608]
[1744310529571,1.3182,1518.1,1518.0,6.2398]
[1744310529774,3.29511,1518.3,1518.1,1.3182]
[1744310529775,0.00987524,1518.2,1518.1,1.3182]
[1744310529972,0.00987524,1518.2,1518.0,3.2078]
[1744310530172,1.32806524,1518.2,1518.0,4.52601]
[1744310530472,1.32798524,1518.2,1518.1,1.3182]
[1744310530667,0.00987524,1518.2,1518.1,1.3182]
[1744310531175,1.32798524,1518.2,1518.1,1.3182]
[1744310531877,1.3182,1518.1,1518.0,3.2078]
[1744310532265,1.31837,1517.9,1517.8,7.31043]
[1744310532469,1.31837,1517.9,1517.8,1.31843]
[1744310532671,9.45008,1518.1,1517.7,6.0135]
[1744310532865,9.45008,1518.1,1517.7,7.33197]
[1744310533074,1.31833,1518.0,1517.9,1.31836]
[1744310533270,2.8587,1518.1,1517.7,6.0135]
[1744310533479,1.31843,1517.9,1517.7,7.33197]
[1744310533777,6.15421,1518.1,1517.7,4.52627]
[1744310533977,1.31845,1517.9,1517.8,1.31844]
[1744310534271,1.31843,1517.9,1517.7,3.2078]
[1744310534480,1.31834,1518.0,1517.9,1.31833]
[1744310535181,1.3184,1517.9,1517.8,1.31839]
[1744310535480,1.31834,1518.0,1517.9,1.31833]
[1744310535778,1.31839,1517.9,1517.8,1.31838]
[1744310535979,1.31841,1517.9,1517.8,1.31839]
[1744310536277,4.26545,1518.0,1517.9,1.31837]
[1744310536478,3.07917524,1518.2,1518.0,1.31823]
[1744310536677,0.00987524,1518.2,1518.1,1.3182]
[1744310536878,1.32805524,1518.2,1518.1,1.3182]
[1744310537781,0.00987524,1518.2,1517.9,3.2078]
[1744310537981,4.24977,1518.1,1518.0,1.31828]
[1744310539179,1.31828,1518.0,1517.9,4.52615]
[1744310539382,1.31828,1518.0,1517.9,3.2078]
[1744310539680,3.29604,1517.9,1517.4,10.14937524]
[1744310539875,1.31872,1517.5,1517.4,5.24e-06]
[1744310540183,2.8806,1517.9,1517.8,1.31846]